{"text_format":"3","workbook":"xlsx","n_sheets":7,"sheets":["home","algemeen","dieren","groentefruit","supplementen","webshop","winkelwagen"],"not_rendered":{"images":26,"macros":1,"defined_names":1},"read":"whole","date_system":"1900"}

{"sheet":"home","index":0,"n_rows":32,"n_cols":4,"rows_kept":32,"merged":[[19,3,22,12],[23,3,25,12],[27,3,30,12],[31,3,32,12]]}
{"$rows_empty":17}
[null,"Home",null,"Home"]
[]
[null,"Voeding algemeen",null,"De baardagame of baardagaam (Pogona vitticeps) is een hagedis die behoort tot de familie agamen. De agame leeft in delen van Australië en komt voor in woestijnachtige gebieden. De baardagaam heeft verschillende aanpassingen om de hitte overdag en de koude nachten te overleven."]
[]
[null,"Voedseldieren"]
[]
[null,"Groente en fruit",null,"De baardagaam is een van de bekendste hagedissen, omdat het een van de populairste soorten is in de handel in exotische dieren. De baardagaam wordt wereldwijd als exotisch huisdier gehouden waardoor er veel bekend is over de levenswijze. De baardagaam staat bekend als een beginnerssoort, maar heeft wel een ruim terrarium nodig dat voldoet aan verschillende eisen."]
[]
[null,"Supplementen"]
[]
[null,"Webshop",null,"De baardagaam is een middelgrote hagedis met krachtige klauwen en een duidelijk afgeplat lichaam. Een volwassen baardagaam kan een totale lichaamslengte bereiken van ongeveer 60 centimeter. Ongeveer de helft van de totale lichaamslengte bestaat uit de staart. De agaam heeft een relatief grote kop, een plomp en gedrongen lichaam en een relatief korte en dunne staart in vergelijking met andere hagedissen."]
[]
[null,"Winkelwagen"]
[]
[{"$nulls":3},"Bij Pogona Equipment vindt u alle informatie over het voeden van baardagamen. Bij ons kunt u ook alles bestellen voor een evenwichtige voeding van baardagamen."]

{"sheet":"algemeen","index":1,"n_rows":30,"n_cols":4,"rows_kept":30,"merged":[[19,3,32,12]]}
{"$rows_empty":17}
[null,"Home",null,"Voeding algemeen"]
[]
[null,"Voeding algemeen",null,"Baardagamen zijn omnivoren. Een baardagaam kan best veel eten, vooral als hij nog jong is. Dit is ook nodig omdat hij dan in de groei is en veel voedingsstoffen nodig heeft. Een jonge baardagaam eet meer dierlijk voedsel en in mindere mate groente/fruit, terwijl een volwassen baardagaam veelal groente/fruit eet en in mindere mate dierlijk voedsel. \n\nVoer jonge baardagamen twee keer per dag en geef ze zoveel als ze lusten. Bied ze iedere dag 's morgens groenvoer aan, zo wennen ze eraan en misschien eten ze er al wat van. 's Middags geef je ze dierlijk voedsel. \n\nVolwassen baardagamen geef je ook twee keer per dag voedsel, 's morgens groente/fruit en 's middags voedseldieren. \n\nNet zoals het voor een mens belangrijk is gevarieerd te eten, is dit ook zo voor de baardagaam. Bied een baardagaam daarom zoveel mogelijk variatie in zijn voeding.    \n"]
[]
[null,"Voedseldieren"]
[]
[null,"Groente en fruit"]
[]
[null,"Supplementen"]
[]
[null,"Webshop"]
[]
[null,"Winkelwagen"]

{"sheet":"dieren","index":2,"n_rows":46,"n_cols":7,"rows_kept":46,"merged":[[19,3,29,12],[45,3,47,12]]}
{"$rows_empty":17}
[null,"Home",null,"Voedseldieren"]
[]
[null,"Voeding algemeen",null,"Een goede maatstaf voor het voeren van de (zeker wat jongere) baardagaam is om geen voedseldieren aan te bieden die groter zijn dan de afstand tussen de ogen van de baardagaam. Met die grootte kan de baardagaam het dier nog goed in de bek nemen en voorkom je dat hij stikt in zijn voedsel. \nPasgeboren baardagamen beginnen met krekels maat 4 en hoe groter de baardagaam, hoe groter de voedseldieren. Volwassen baardagamen krijgen volwassen krekels, dit is maat 8. \n\nVoedseldieren kun je bij de betere dierenwinkel krijgen of bestellen. Ook zijn er op internet winkels te vinden die de voedseldieren opsturen. Het is ook mogelijk om zelf voedseldieren te kweken.\nHet is aan te raden om de voedseldieren ook voer te geven om ze langer in leven te houden. Dit kan door een stuk appel, een blaadje witlof of andijvie te geven. Zo blijven de voedseldieren langer in leven en ontwikkelen ze meer voedingsstoffen voor je baardagaam. Dit kan allemaal in het bakje waarin je de voedseldieren koopt."]
[]
[null,"Voedseldieren"]
[]
[null,"Groente en fruit"]
[]
[null,"Supplementen"]
[]
[null,"Webshop"]
[]
[null,"Winkelwagen"]
[]
[{"$nulls":3},"Voedsellijst - dierlijk voedsel"]
[]
[{"$nulls":3},"Op onderstaande lijst staat dierlijk voedsel / vlees dat je de baardagaam veilig kunt voeren."]
[]
[{"$nulls":3},"Dierlijk voedsel",null,null,"Opmerkingen"]
[{"$nulls":3},"Buffalowormen"]
[{"$nulls":3},"Dubia"]
[{"$nulls":3},"Krekels"]
[{"$nulls":3},"Moriowormen",null,null,"Verwijder de kop"]
[{"$nulls":3},"Nestmuizen",null,null,"Maximaal 2 per week (tegen vervetting)"]
[{"$nulls":3},"Sprinkhanen"]
[{"$nulls":3},"Tebolarven"]
[{"$nulls":3},"Krulvliegen"]
[]
[{"$nulls":3},"Ook kun je de baardagaam soms kattenvoer geven. Dat is makkelijk wanneer je de baardagaam een medicijn moet toedienen. Gebruik dan een kwalitatief goed merk kattenvoer en was de gelei eraf voor je het voer geeft. Ook mag je de baardagaam af en toe (1x per week) een stukje gekookt ei (eiwit) of een klein stukje gekookte kip geven."]

{"sheet":"groentefruit","index":3,"n_rows":55,"n_cols":7,"rows_kept":55,"merged":[[19,3,29,12],[36,3,36,5],[36,6,36,9],[37,3,37,5],[37,6,37,9],[38,3,38,5],[38,6,38,9],[39,3,39,5],[39,6,39,9],[40,3,40,5],[40,6,40,9],[41,3,41,5],[41,6,41,9],[42,3,42,5],[42,6,42,9],[43,3,43,5],[43,6,43,9],[44,3,44,5],[44,6,44,9],[45,3,45,5],[45,6,45,9],[46,3,46,5],[46,6,46,9],[47,3,47,5],[47,6,47,9],[48,3,48,5],[48,6,48,9],[49,3,49,5],[49,6,49,9],[50,3,50,5],[50,6,50,9],[51,3,51,5],[51,6,51,9],[52,3,52,5],[52,6,52,9],[53,3,53,5],[53,6,53,9],[54,3,54,5],[54,6,54,9]]}
{"$rows_empty":17}
[null,"Home",null,"Groente en fruit"]
[]
[null,"Voeding algemeen",null,"Bij groente en fruit zijn er bepaalde stoffen die een baardagaam niet binnen mag krijgen:\n\nTannine (looizuur) is een stof die voorkomt in onder andere druiven, hop, graan, vijgen en erwten. Tannine word veel gebruikt als een natuurlijk conserveringsmiddel en is zeer schadelijk voor de baardagaam.\n\nVeel koolsoorten bevatten de stof cyanide dat keelproblemen kan veroorzaken bij de baardagaam. Daarom is het af te raden om de baardagaam kool te voeren.\n\nNitraat in groente zorgt ervoor dat de zuurstof slecht in het bloed opgenomen wordt. Daarom mag je spinazie en wortelen wel voeren, maar alleen in kleine hoeveelheden.\n"]
[]
[null,"Voedseldieren"]
[]
[null,"Groente en fruit"]
[]
[null,"Supplementen"]
[]
[null,"Webshop"]
[]
[null,"Winkelwagen"]
[]
[]
[{"$nulls":3},"Voedsellijst - groente en fruit"]
[]
[{"$nulls":3},"Op onderstaande lijst staat groente en fruit dat je de baardagaam veilig kunt voeren:"]
[]
[{"$nulls":3},"Groente en fruit",null,null,"Opmerkingen"]
[{"$nulls":3},"Aardbeien"]
[{"$nulls":3},"Andijvie"]
[{"$nulls":3},"Appel"]
[{"$nulls":3},"Aubergine"]
[{"$nulls":3},"Banaan"]
[{"$nulls":3},"Kersen",null,null,"Pit verwijderen"]
[{"$nulls":3},"Kiwi"]
[{"$nulls":3},"Komkommer",null,null,"Bevat weinig vitamines"]
[{"$nulls":3},"Mais"]
[{"$nulls":3},"Mango"]
[{"$nulls":3},"Paardenbloem",null,null,"Alleen de bloem en de blaadjes"]
[{"$nulls":3},"Paprika"]
[{"$nulls":3},"Peer"]
[{"$nulls":3},"Pruim",null,null,"Werkt laxerend"]
[{"$nulls":3},"Rode klaver"]
[{"$nulls":3},"Sla",null,null,"Bevat weinig vitamines"]
[{"$nulls":3},"Tomaat"]
[{"$nulls":3},"Witlof"]

{"sheet":"supplementen","index":4,"n_rows":30,"n_cols":4,"rows_kept":30,"merged":[[19,3,28,12]]}
{"$rows_empty":17}
[null,"Home",null,"Supplementen"]
[]
[null,"Voeding algemeen",null,"Het voedsel dat je je baardagaam geeft kun je verrijken met voedingssupplementen zoals kalk en vitamines. Hiervoor zijn kant-en-klare supplementen te krijgen die je over de groenten of de voedseldieren kunt doen bij het voederen.\n\nHet vitaminesupplement strooi je 2 keer per week over de voeding, het kalksupplement strooi je 4 keer per week over de voeding. Op deze manier houd je de baardagaam in optimale conditie en gezondheid. Deze supplementen moet je niet op dezelfde dag geven, omdat sommige vitaminen de kalk afbreken.\n"]
[]
[null,"Voedseldieren"]
[]
[null,"Groente en fruit"]
[]
[null,"Supplementen"]
[]
[null,"Webshop"]
[]
[null,"Winkelwagen"]

{"sheet":"webshop","index":5,"n_rows":144,"n_cols":33,"rows_kept":144,"merged":[[22,7,29,12],[31,7,31,8],[38,7,45,12],[47,7,47,8],[54,7,61,12],[63,7,63,8],[70,7,77,12],[79,7,79,8],[86,7,93,12],[95,7,95,8],[102,7,109,12],[111,7,111,8],[118,7,125,12],[127,7,127,8],[134,7,141,12],[143,7,143,8]]}
[{"$nulls":23},"huiskrekels",{"$nulls":4},1,{"$f":"VLOOKUP(H32,X:AA,2,FALSE)&\" - \"&VLOOKUP(H32,X:AA,3,FALSE)","v":" - "},{"$f":"K32","v":1},{"$f":"VLOOKUP(H32,X:AA,4,FALSE)","v":0},{"$f":"TEXT(AE1*AF1,\"#,00\")","v":",00"}]
[{"$nulls":23},"maak keuze",{"$nulls":4},2,{"$f":"VLOOKUP(H48,X:AA,2,FALSE)&\" - \"&VLOOKUP(H48,X:AA,3,FALSE)","v":" - "},{"$f":"K48","v":1},{"$f":"VLOOKUP(H48,X:AA,4,FALSE)","v":0},{"$f":"TEXT(AE2*AF2,\"#,00\")","v":",00"}]
[{"$nulls":23},"maat 3 - € 0,25","huiskrekels","maat 3",0.25,null,3,{"$f":"VLOOKUP(H64,X:AA,2,FALSE)&\" - \"&VLOOKUP(H64,X:AA,3,FALSE)","v":" - "},{"$f":"K64","v":1},{"$f":"VLOOKUP(H64,X:AA,4,FALSE)","v":0},",00"]
[{"$nulls":23},"maat 4 - € 0,50","huiskrekels","maat 4",{"v":0.5,"d":"0.50"},null,4,{"$f":"VLOOKUP(H80,X:AA,2,FALSE)&\" - \"&VLOOKUP(H80,X:AA,3,FALSE)","v":" - "},{"$f":"K80","v":1},{"$f":"VLOOKUP(H80,X:AA,4,FALSE)","v":0},",00"]
[{"$nulls":23},"maat 5 - € 0,75","huiskrekels","maat 5",0.75,null,5,{"$f":"VLOOKUP(H96,X:AA,2,FALSE)&\" - \"&VLOOKUP(H96,X:AA,3,FALSE)","v":" - "},{"$f":"K96","v":1},{"$f":"VLOOKUP(H96,X:AA,4,FALSE)","v":0},",00"]
[{"$nulls":23},"maat 6 - € 1,00","huiskrekels","maat 6",{"v":1,"d":"1.00"},null,6,{"$f":"VLOOKUP(H112,X:AA,2,FALSE)&\" - \"&VLOOKUP(H112,X:AA,3,FALSE)","v":" - "},{"$f":"K112","v":1},{"$f":"VLOOKUP(H112,X:AA,4,FALSE)","v":0},",00"]
[{"$nulls":23},"maat 7 - € 1,25","huiskrekels","maat 7",1.25,null,7,{"$f":"VLOOKUP(H128,X:AA,2,FALSE)&\" - \"&VLOOKUP(H128,X:AA,3,FALSE)","v":" - "},{"$f":"K128","v":1},{"$f":"VLOOKUP(H128,X:AA,4,FALSE)","v":0},",00"]
[{"$nulls":23},"maat 8 - € 1,50","huiskrekels","maat 8",{"v":1.5,"d":"1.50"},null,8,{"$f":"VLOOKUP(H144,X:AA,2,FALSE)&\" - \"&VLOOKUP(H144,X:AA,3,FALSE)","v":" - "},{"$f":"K144","v":1},{"$f":"VLOOKUP(H144,X:AA,4,FALSE)","v":0},",00"]
[]
[{"$nulls":23},"moriowormen"]
[{"$nulls":23},"maak keuze"]
[{"$nulls":23},"doosje 50 gram - € 1,40","moriowormen","doosje 50 gram",{"v":1.4,"d":"1.40"}]
[{"$nulls":23},"koker 500 gram - € 11,50","moriowormen","koker 500 gram",{"v":11.5,"d":"11.50"}]
[{"$nulls":23},"koker 1 kilo - € 20,00","moriowormen","koker 1 kilo",{"v":20,"d":"20.00"}]
[]
[{"$nulls":23},"sprinkhanen"]
[{"$nulls":23},"maak keuze"]
[null,"Home",null,"Webshop",{"$nulls":19},"klein - € 0,55","sprinkhanen","klein",0.55]
[{"$nulls":23},"middel - € 1,10","sprinkhanen","middel",{"v":1.1,"d":"1.10"}]
[null,"Voeding algemeen",{"$nulls":5},"Huiskrekels",{"$nulls":15},"halfwas - € 1,65","sprinkhanen","halfwas",1.65]
[{"$nulls":7},"Acheta Domestica",{"$nulls":15},"volwas - € 2,20","sprinkhanen","volwas",{"v":2.2,"d":"2.20"}]
[null,"Voedseldieren"]
[{"$nulls":7},"Huiskrekels zijn bij uitstek geschikt als voedseldieren voor reptielen. Door de variatie in grootte is er voor elk reptiel wel een geschikte maat huiskrekel. Zorg ervoor dat u uw voedseldieren altijd goed bepoedert met een vitamine- of kalksupplement voordat u ze voert. Deze supplementen zijn bij ons verkrijgbaar.\n\n1 bakje huiskrekels is voldoende voor 1 baardagaam voor 2 dagen.\n\nvanaf € 0,25 excl. btw",{"$nulls":15},"buffalowormen"]
[null,"Groente en fruit",{"$nulls":21},"maak keuze"]
[{"$nulls":23},"10 stuks - € 0,19","buffalowormen","10 stuks",0.19]
[null,"Supplementen"]
[{"$nulls":23},"dubia"]
[null,"Webshop",{"$nulls":21},"maak keuze"]
[{"$nulls":23},"15 stuks - € 0,99","dubia","15 stuks",0.99]
[null,"Winkelwagen"]
[{"$nulls":4},"artikelnr 1",{"$nulls":18},"krulvliegen"]
[{"$nulls":7},"maak keuze",null,"aantal:",1,{"$nulls":12},"maak keuze"]
[{"$nulls":23},"bakje poppen - € 0,25","krulvliegen","bakje poppen",0.25]
[{"$nulls":23},"bakje vliegen - € 0,25","krulvliegen","bakje vliegen",0.25]
[]
[{"$nulls":7},"Moriowormen",{"$nulls":15},"muizen"]
[{"$nulls":7},"Zophobas morio",{"$nulls":15},"maak keuze"]
[{"$nulls":23},"babymuis per stuk - € 0,30","muizen","babymuis",{"v":0.3,"d":"0.30"}]
[{"$nulls":7},"Moriowormen bevatten veel eiwitten, en zijn ongeveer 50 mm groot. Ze zijn in verschillende hoeveelheden te bestellen.\n\n• 1 doosje van 50 gram is voldoende voor 1 baardagaam voor 2 dagen.\n• 1 koker van 500 gram is voldoende voor 1 baardagaam voor 20 dagen.\n• 1 koker van 1 kilo is voldoende voor 1 baardagaam voor 40 dagen.\n\nvanaf € 1,40 excl. btw",{"$nulls":15},"kleine muis per stuk - € 0,70","muizen","kleine muis",{"v":0.7,"d":"0.70"}]
[{"$nulls":23},"regular muis per stuk - € 0,75","muizen","regular muis",0.75]
[{"$nulls":23},"grote muis per stuk - € 0,80","muizen","grote muis",{"v":0.8,"d":"0.80"}]
[]
[{"$nulls":23},"tebolarven"]
[{"$nulls":23},"maak keuze"]
[{"$nulls":23},"bakje middel - € 3,20","tebolarven","bakje middel",{"v":3.2,"d":"3.20"}]
[{"$nulls":23},"250 stuks middel - € 40,00","tebolarven","250 stuks middel",{"v":40,"d":"40.00"}]
[{"$nulls":4},"artikelnr 2"]
[{"$nulls":7},"maak keuze",null,"aantal:",1]
[]
[]
[]
[{"$nulls":7},"Sprinkhanen"]
[{"$nulls":7},"Locusta migratoria"]
[]
[{"$nulls":7},"Sprinkhanen zijn erg populair als voedseldier voor reptielen en vogels. Sprinkhanen zijn geschikt voor diverse diersoorten omdat sprinkhanen in verschillende maten te bestellen zijn: van volwassen tot klein.\nWoestijnsprinkhaan \n• volwassen: ca. 3 cm / voldoende voor 1 baardagaam voor 1 dag.\n• klein: ca. 1 cm / voldoende voor 1 jonge baardagaam voor 1 dag.\n\nvanaf € 0,55 excl. btw"]
{"$rows_empty":7}
[{"$nulls":4},"artikelnr 3"]
[{"$nulls":7},"maak keuze",null,"aantal:",1]
[]
[]
[]
[{"$nulls":7},"Buffalowormen"]
[{"$nulls":7},"Alphitobius diaperinus"]
[{"$nulls":7},"\n"]
[{"$nulls":7},"Buffalowormen zijn geschikt als voedseldier voor hagedissen en vogels. Ze zijn ongeveer 1 cm lang en hebben een hoog proteïne-gehalte.\n\n10 stuks buffalowormen zijn voldoende voor 1 baardagaam voor 1 dag.\n\n€ 0,19 excl. btw"]
{"$rows_empty":7}
[{"$nulls":4},"artikelnr 4"]
[{"$nulls":7},"maak keuze",null,"aantal:",1]
[]
[]
[]
[{"$nulls":7},"Dubia"]
[{"$nulls":7},"Blaptica dubia"]
[]
[{"$nulls":7},"De kakkerlak is heel populair als voedseldier, door zijn extreem hoge proteïne-gehalte. De dubia-kakkerlakken zijn over het algemeen vrij groot en vooral geschikt voor de wat grotere reptielen zoals baardagamen, wateragamen en kameleons.\n\n15 stuks dubia's zijn voldoende voor 1 baardagaam voor 2 dagen.\n\n€ 0,99 excl. btw"]
{"$rows_empty":7}
[{"$nulls":4},"artikelnr 5"]
[{"$nulls":7},"maak keuze",null,"aantal:",1]
[]
[]
[]
[{"$nulls":7},"Krulvliegen"]
[{"$nulls":7},"Musca Domestica"]
[]
[{"$nulls":7},"Krulvliegen zijn te vergelijken met de huisvlieg. Het enige verschil is dat de vleugels gekruld zijn waardoor ze niet kunnen vliegen. De krulvliegen zijn verkrijgbaar als poppen of als vliegen. Bij de poppen kan je zelf controleren wanneer ze vliegen worden door het bakje warmer of kouder weg te zetten.\n\n1 bakje krulvliegen is voldoende voor 1 baardagaam voor 2 dagen.\n\n€ 0,25 excl. btw"]
{"$rows_empty":7}
[{"$nulls":4},"artikelnr 6"]
[{"$nulls":7},"maak keuze",null,"aantal:",1]
[]
[]
[]
[{"$nulls":7},"Muizen"]
[{"$nulls":7},"Mus musculus"]
[]
[{"$nulls":7},"Diepgevroren muizen zijn in diverse maten verkrijgbaar.\n\n1 kleine muis is voldoende voor 1 baardagaam voor 4 dagen.\n\nvanaf € 0,30 excl. btw"]
{"$rows_empty":7}
[{"$nulls":4},"artikelnr 7"]
[{"$nulls":7},"maak keuze",null,"aantal:",1]
[]
[]
[]
[{"$nulls":7},"Tebolarven"]
[{"$nulls":7},"Chilecomadia moorei"]
[]
[{"$nulls":7},"Tebolarven bevatten veel calcium en zijn lang goed te houden door ze koel te bewaren. Ze zijn leverbaar in doosjes van 15 stuks of grootverpakkingen met ca. 250 stuks.\n\nTebolarven\n• 1 bakje is voldoende voor 1 baardagaam voor 2 dagen.\n• 250 stuks zijn voldoende voor 1 baardagaam voor 32 dagen.\n\nvanaf € 3,20 excl. btw"]
{"$rows_empty":8}
[{"$nulls":4},"artikelnr 8",null,null,"maak keuze",null,"aantal:",1]

{"sheet":"winkelwagen","index":6,"n_rows":58,"n_cols":11,"rows_kept":58,"merged":[[19,3,19,11],[21,5,21,7],[22,5,22,7],[23,5,23,7],[24,5,24,7],[26,5,27,7],[26,8,27,8],[26,9,27,9],[26,10,27,10],[28,5,29,7],[28,8,29,8],[28,9,29,9],[28,10,29,10],[30,5,31,7],[30,8,31,8],[30,9,31,9],[30,10,31,10],[32,5,33,7],[32,8,33,8],[32,9,33,9],[32,10,33,10],[34,5,35,7],[34,8,35,8],[34,9,35,9],[34,10,35,10],[36,5,37,7],[36,8,37,8],[36,9,37,9],[36,10,37,10],[38,5,39,7],[38,8,39,8],[38,9,39,9],[38,10,39,10],[40,5,41,7],[40,8,41,8],[40,9,41,9],[40,10,41,10],[42,5,43,7],[42,8,43,8],[42,9,43,9],[42,10,43,10],[44,5,45,9],[44,10,45,10],[46,5,47,9],[46,10,47,10],[48,5,49,9],[48,10,49,10],[50,5,51,9],[50,10,51,10],[53,5,54,6],[55,5,56,6],[55,7,56,10],[57,5,58,6],[57,7,58,10]]}
{"$rows_empty":17}
[null,"Home",null,"Winkelwagen"]
[]
[null,"Voeding algemeen",null,"Bestelformulier voedseldieren"]
[]
[null,"Voedseldieren",{"$nulls":3},"Bedrijfsnaam:",null,null,"Pogona Equipment"]
[{"$nulls":5},"Contactpersoon:",null,null,"B. Agaam"]
[null,"Groente en fruit",{"$nulls":3},"Straat en huisnummer:",null,null,"Kakkerlak 4"]
[{"$nulls":5},"Woonplaats:",null,null,"Wormerveer"]
[null,"Supplementen"]
[{"$nulls":5},"Voedseldieren",null,null,"Aantal","Prijs","Totaal"]
[null,"Webshop"]
[{"$nulls":10},{"$f":"IF(I29=\"\",\"\",I29*J29)","v":""}]
[null,"Winkelwagen"]
[{"$nulls":10},{"$f":"IF(I31=\"\",\"\",I31*J31)","v":""}]
[]
[{"$nulls":10},{"$f":"IF(I33=\"\",\"\",I33*J33)","v":""}]
[]
[{"$nulls":10},{"$f":"IF(I35=\"\",\"\",I35*J35)","v":""}]
[]
[{"$nulls":10},{"$f":"IF(I37=\"\",\"\",I37*J37)","v":""}]
[]
[{"$nulls":10},{"$f":"IF(I39=\"\",\"\",I39*J39)","v":""}]
[]
[{"$nulls":10},{"$f":"IF(I41=\"\",\"\",I41*J41)","v":""}]
[]
[{"$nulls":10},{"$f":"IF(I43=\"\",\"\",I43*J43)","v":""}]
[]
[{"$nulls":5},"totaalprijs exclusief btw",{"$nulls":4},{"$f":"SUM(K29:K44)","v":{"v":0,"d":"€ 0.00"}}]
[]
[{"$nulls":5},"btw (6%)"]
[]
[{"$nulls":5},"verzendkosten"]
[]
[{"$nulls":5},"totaal inclusief btw en verzendkosten"]
[]
[]
[{"$nulls":5},"Besteld door:"]
[]
[{"$nulls":5},"Kandidaatnaam:"]
[]
[{"$nulls":5},"Kandidaatnummer:"]